bitfinex-derivatives/quotes_SOLF0:USTF0_20251024
["timestamp","ask_amount","ask_price","bid_price","bid_amount"]
[1761314978653,4.74803412,191.67,191.53,5.00414712]
[1761314978851,4.18035969,191.66,191.54,34.2]
[1761314979149,4.18035969,191.65,191.54,34.2]
[1761314979452,6.31010254,191.71,191.54,34.2]
[1761314979453,4.18035969,191.64,191.54,34.2]
[1761314979645,4.88460742,191.68,191.54,34.2]
[1761314979840,4.18089833,191.67,191.54,34.2]
[1761314980044,4.18089833,191.66,191.54,34.2]
[1761314980249,4.18089833,191.65,191.54,34.2]
[1761314980552,4.88460742,191.68,191.54,34.2]
[1761314980752,4.18091922,191.67,191.54,34.2]
[1761314980954,4.18091922,191.66,191.54,34.2]
[1761314981150,4.18091922,191.65,191.54,34.2]
[1761314981455,4.18110552,191.64,191.54,34.2]
[1761314981652,4.74803412,191.7,191.57,5.00414712]
[1761314981952,4.18154012,191.69,191.57,5.00414712]
[1761314982158,4.18154012,191.68,191.57,5.00414712]
[1761314982347,4.18154012,191.67,191.57,5.00414712]
[1761314982550,4.88322358,191.71,191.54,34.2]
[1761314982752,4.18020991,191.7,191.57,5.00414712]
[1761314982951,4.18020991,191.69,191.6,4.6965]
[1761314983254,4.18020991,191.68,191.6,4.6965]
[1761314983452,4.74803412,191.73,191.59,44.66]
[1761314983661,9.0613662,191.72,191.59,44.66]
[1761314983852,4.17933286,191.71,191.59,44.66]
[1761314984047,4.88241226,191.74,191.59,44.66]
[1761314984253,4.1797888,191.73,191.61,5.00414712]
[1761314984452,4.1797888,191.72,191.63,4.6957]
[1761314984652,4.1797888,191.71,191.63,4.6957]
[1761314984859,4.87892175,191.75,191.63,4.6957]
[1761314985163,4.1768703,191.74,191.63,4.6957]
[1761314985355,4.1768703,191.73,191.63,4.6957]
[1761314985551,4.1768703,191.72,191.63,4.6957]
[1761314985861,4.74803412,191.77,191.61,5.00414712]
[1761314986061,9.05076175,191.76,191.61,5.00414712]
[1761314986354,4.17462351,191.75,191.61,5.00414712]
[1761314986659,4.17462351,191.74,191.61,5.00414712]
[1761314986860,4.17462351,191.73,191.61,5.00414712]
[1761314987058,4.17462351,191.72,191.61,5.00414712]
[1761314987253,4.74803412,191.76,191.61,5.00414712]
[1761314987254,4.74803412,191.77,191.61,5.00414712]
[1761314987459,4.16966521,191.76,191.61,5.00414712]
[1761314987763,4.16966521,191.75,191.61,5.00414712]
[1761314987958,4.74803412,191.79,191.68,4.6944]
[1761314988161,8.95495975,191.78,191.68,4.6944]
[1761314988451,8.95495975,191.77,191.68,4.6944]
[1761314988656,4.08441267,191.76,191.68,4.6944]
[1761314988866,4.08441267,191.75,191.68,4.6944]
[1761314989066,4.86808382,191.77,191.68,4.6944]
[1761314989255,4.08223722,191.76,191.68,4.6944]
[1761314989456,4.08223722,191.75,191.68,4.6944]
[1761314989758,4.74803412,191.8,191.65,62.0]
[1761314989964,13.69372035,191.79,191.63,5.00414712]
[1761314990151,8.94568623,191.78,191.63,5.00414712]
[1761314990355,8.94568623,191.77,191.66,4.6949]
[1761314990557,4.08018434,191.76,191.63,5.00414712]
[1761314990758,4.08018434,191.75,191.63,5.00414712]
[1761314990953,4.8637154,191.78,191.63,5.00414712]
[1761314991158,8.94219105,191.77,191.63,5.00414712]
[1761314991358,4.07847565,191.76,191.63,5.00414712]
[1761314991565,4.07847565,191.75,191.63,5.00414712]
[1761314991765,4.07694813,191.74,191.68,4.6946]
[1761314991963,4.86216768,191.77,191.68,4.6946]
[1761314992165,8.93915355,191.76,191.68,4.6946]
[1761314992368,4.07698587,191.75,191.68,4.6946]
[1761314992665,4.86121997,191.77,191.68,4.6946]
[1761314992865,4.0766433,191.76,191.68,4.6946]
[1761314993091,4.0766433,191.75,191.68,4.6946]
[1761314993272,4.86121997,191.77,191.68,4.6946]
[1761314993568,4.07548763,191.76,191.68,4.6946]
[1761314993768,4.07548763,191.75,191.68,4.6946]
[1761314993971,4.86121997,191.77,191.68,4.6946]
[1761314994269,4.07548763,191.76,191.68,4.6946]
[1761314994468,4.86121997,191.78,191.68,4.6946]
[1761314994669,4.07434022,191.77,191.64,62.0]
[1761314994867,17.14257827,191.76,191.58,44.62]
[1761314995056,8.93224172,191.75,191.58,44.62]
[1761314995260,8.93224172,191.74,191.58,44.62]
[1761314995457,4.07434022,191.73,191.58,44.62]
[1761314995768,4.07434022,191.72,191.58,44.62]
[1761314995967,4.07434022,191.71,191.58,44.62]
[1761314996172,4.85748775,191.73,191.63,4.6958]
[1761314996369,4.07330114,191.72,191.58,44.62]
[1761314996572,12.95837067,191.76,191.58,44.62]
[1761314996772,8.93072236,191.75,191.58,44.62]
[1761314996968,8.93072236,191.74,191.58,44.62]
[1761314997266,4.07327184,191.73,191.64,4.6954]
[1761314997567,4.07327184,191.73,191.58,44.62]
[1761314997568,12.95837067,191.79,191.58,44.62]
[1761314997767,13.67910221,191.78,191.59,62.0]
[1761314997968,8.93106809,191.77,191.59,62.0]
[1761314998170,8.93106809,191.76,191.65,4.6952]
[1761314998473,8.93106809,191.75,191.65,4.6952]
[1761314998674,8.99945037,191.74,191.65,4.6952]
[1761314998969,4.74803412,191.78,191.65,4.6952]
[1761314998970,4.07351617,191.73,191.65,4.6952]
[1761314999170,4.9259342,191.77,191.65,4.6952]
[1761314999372,8.99980043,191.76,191.65,4.6952]
[1761314999571,8.99980043,191.75,191.65,4.6952]
[1761314999871,4.07386623,191.74,191.66,4.6949]
[1761315000074,4.92597287,191.77,191.66,4.6949]
[1761315000372,8.999736,191.76,191.66,4.6949]
[1761315000572,8.999736,191.75,191.66,4.6949]
[1761315000768,8.999736,191.74,191.66,4.6949]
[1761315000975,4.07376313,191.73,191.66,4.6949]
[1761315001175,4.92577871,191.77,191.66,4.6949]
[1761315001470,8.99998616,191.76,191.6,17.60343655]
[1761315001659,4.74803412,191.81,191.6,17.60343655]
[1761315001861,9.00180425,191.8,191.6,17.60343655]
[1761315002175,9.00180425,191.79,191.61,44.62]
[1761315002371,9.00180425,191.78,191.61,44.62]
[1761315002570,9.00180425,191.77,191.61,44.62]
[1761315002773,9.00180425,191.76,191.61,44.62]
[1761315002971,4.74803412,191.8,191.61,44.62]
[1761315003166,13.75049812,191.79,191.61,44.62]
[1761315003367,9.002464,191.78,191.67,4.6946]
[1761315003568,9.002464,191.77,191.67,4.6946]
[1761315003773,9.002464,191.76,191.6,8.21033655]
[1761315004076,9.002464,191.75,191.56,8.21033655]
[1761315004274,9.002464,191.74,191.57,27.88]
[1761315004574,9.002464,191.73,191.58,62.0]
[1761315004777,9.002464,191.72,191.58,62.0]
[1761315004972,4.07495798,191.71,191.63,4.6957]
[1761315005277,4.74803412,191.75,191.63,4.6957]
[1761315005476,9.01654384,191.74,191.63,4.6957]
[1761315005666,9.01654384,191.73,191.63,4.6957]
[1761315005868,9.01654384,191.72,191.63,4.6957]
[1761315006076,4.08162855,191.71,191.58,62.0]
[1761315006273,4.93858857,191.74,191.58,62.0]
[1761315006475,9.02447148,191.73,191.58,62.0]
[1761315006775,4.08588291,191.72,191.58,62.0]
[1761315006978,4.74803412,191.77,191.58,62.0]
[1761315007175,9.02581849,191.76,191.58,62.0]
[1761315007477,9.02581849,191.75,191.58,62.0]
[1761315007671,9.02581849,191.74,191.58,62.0]
[1761315007875,9.02581849,191.73,191.58,62.0]
[1761315008085,4.08579788,191.72,191.58,62.0]
[1761315008278,4.74803412,191.77,191.58,62.0]
[1761315008475,9.03284161,191.76,191.61,9.3926]
[1761315008776,4.74803412,191.84,191.66,8.21033655]
[1761315008974,8.21033655,191.91,191.62,8.21033655]
[1761315008975,9.03580908,191.83,191.73,4.6933]
[1761315009172,4.09032742,191.82,191.69,8.21033655]
[1761315009377,4.09032742,191.81,191.65,8.21033655]
[1761315009574,4.09032742,191.8,191.66,44.6]
[1761315009779,4.09032742,191.79,191.66,44.6]
[1761315009973,4.09032742,191.78,191.61,8.21033655]
[1761315010174,8.89152328,191.77,191.62,44.6]
[1761315010374,8.89152328,191.76,191.62,44.6]
[1761315010579,4.09032742,191.75,191.63,44.6]
[1761315010783,4.09032742,191.74,191.66,4.6951]
[1761315010974,4.74803412,191.78,191.66,4.6951]
[1761315011174,8.89271485,191.77,191.66,4.6951]
[1761315011374,8.89271485,191.76,191.66,4.6951]
[1761315011582,4.0899422,191.75,191.66,4.6951]
[1761315011781,4.0899422,191.74,191.66,4.6951]
[1761315011980,4.0899422,191.73,191.66,4.6951]
[1761315012177,4.74803412,191.77,191.65,44.6]
[1761315012383,13.64382303,191.76,191.63,4.6958]
[1761315012580,4.74803412,191.74,191.62,44.6]
[1761315012780,4.74803412,191.72,191.6,4.6964]
[1761315012980,8.89578891,191.71,191.6,4.6964]
[1761315013184,4.09046151,191.7,191.6,4.6964]
[1761315013376,4.09046151,191.69,191.6,4.6964]
[1761315013577,4.74472751,191.74,191.62,4.696]
[1761315013784,8.21033655,191.8,191.62,4.696]
[1761315013785,4.09203741,191.73,191.62,4.696]
[1761315013977,4.09203741,191.72,191.62,4.696]
[1761315014176,4.09203741,191.71,191.62,4.696]
[1761315014487,4.09281147,191.7,191.62,4.696]
[1761315014675,4.80621206,191.73,191.62,4.696]
[1761315014880,4.09324169,191.72,191.62,4.696]
[1761315015184,4.09324169,191.71,191.62,4.696]
[1761315015382,4.09324169,191.7,191.62,4.696]
[1761315015586,4.74472751,191.75,191.62,4.696]
[1761315015786,8.90443764,191.74,191.62,4.696]
[1761315016085,8.90443764,191.73,191.62,4.696]
[1761315016284,4.09542933,191.72,191.63,4.6956]
[1761315016585,4.09542933,191.71,191.63,4.6956]
[1761315016786,4.09542933,191.7,191.63,4.6956]
[1761315017086,4.74472751,191.75,191.63,4.6956]
[1761315017275,8.90648153,191.74,191.63,4.6956]
[1761315017480,8.90648153,191.73,191.63,4.6956]
[1761315017681,4.74472751,191.79,191.63,4.6956]
[1761315017883,8.62814132,191.78,191.63,4.6956]
[1761315018085,8.62814132,191.77,191.64,4.6954]
[1761315018284,8.62814132,191.76,191.64,4.6954]
[1761315018484,8.62814132,191.75,191.64,4.6954]
[1761315018686,8.62814132,191.74,191.66,4.6949]
[1761315018887,12.95506406,191.8,191.66,4.6949]
[1761315019191,8.63305566,191.79,191.66,4.6949]
[1761315019384,8.63305566,191.78,191.66,4.6949]
[1761315019584,8.63305566,191.77,191.66,4.6949]
[1761315019785,8.63305566,191.76,191.66,4.6949]
[1761315019985,8.63305566,191.75,191.66,4.6949]
[1761315020186,4.82051447,191.74,191.66,4.6949]
[1761315020386,8.56589589,191.79,191.66,4.6949]
[1761315020588,8.64168425,191.78,191.66,4.6949]
[1761315020787,8.64168425,191.77,191.66,4.6949]
[1761315020988,8.64168425,191.76,191.66,4.6949]
[1761315021193,8.64168425,191.75,191.66,4.6949]
[1761315021389,8.64772909,191.74,191.66,4.6949]
[1761315021694,4.74472751,191.79,191.66,4.6949]
[1761315021992,8.65220612,191.78,191.66,4.6949]
[1761315022189,8.65220612,191.77,191.61,44.6]
[1761315022493,8.65220612,191.76,191.67,4.6947]
[1761315022693,4.74472751,191.78,191.67,4.6947]
[1761315022694,8.65220612,191.75,191.67,4.6947]
[1761315022893,4.74472751,191.78,191.67,4.6947]
[1761315022894,8.65220612,191.74,191.67,4.6947]
[1761315023193,12.95506406,191.8,191.69,4.6944]
[1761315023401,8.66748154,191.79,191.69,4.6944]
[1761315023689,8.66748154,191.78,191.69,4.6944]
[1761315023890,8.66748154,191.77,191.69,4.6944]
[1761315024086,8.66748154,191.76,191.69,4.6944]
[1761315024285,8.66748154,191.75,191.69,4.6944]
[1761315024593,4.74472751,191.79,191.69,4.6944]
[1761315024790,8.6741427,191.78,191.69,4.6944]
[1761315024991,8.6741427,191.77,191.7,4.694]
[1761315025191,8.6741427,191.76,191.63,9.3917]
[1761315025392,4.74472751,191.8,191.64,62.0]
[1761315025591,8.67856829,191.79,191.66,8.21033655]
[1761315025793,4.74472751,191.84,191.66,8.21033655]
[1761315025996,8.67974037,191.83,191.66,8.21033655]
[1761315026291,8.21033655,191.88,191.67,9.3897]
[1761315026292,8.67974037,191.82,191.67,9.3897]
[1761315026494,4.74472751,191.86,191.7,8.21033655]
[1761315026692,8.68225079,191.85,191.71,44.58]
[1761315026997,8.68225079,191.84,191.76,4.6925]
[1761315027196,8.68225079,191.83,191.76,4.6925]
[1761315027386,8.68225079,191.82,191.76,4.6925]
[1761315027591,4.74472751,191.86,191.73,4.6932]
[1761315027791,13.42497098,191.85,191.72,17.22]
[1761315028095,8.68024347,191.84,191.74,4.6929]
[1761315028291,8.68024347,191.83,191.72,17.22]
[1761315028493,9.4931349,191.91,191.72,17.22]
[1761315028494,4.74472751,191.87,191.72,17.22]
[1761315028698,8.68018529,191.86,191.72,17.22]
[1761315028997,8.68018529,191.85,191.73,62.0]
[1761315029199,3.83986082,191.84,191.73,62.0]
[1761315029391,3.83986082,191.83,191.73,62.0]
[1761315029595,4.68426004,191.86,191.73,62.0]
[1761315029799,8.5225848,191.85,191.77,4.6922]
[1761315029990,3.83832476,191.84,191.73,62.0]
[1761315030198,4.68462253,191.88,191.79,4.6918]
[1761315030495,8.52142517,191.87,191.73,62.0]
[1761315030696,4.74472751,191.92,191.77,8.21033655]
[1761315030900,28.35010254,191.96,191.77,8.21033655]
[1761315030901,3.83797128,191.91,191.77,8.21033655]
[1761315031100,4.6824274,191.94,191.77,8.21033655]
[1761315031301,8.51368997,191.93,191.85,4.6904]
[1761315031501,3.82498997,191.92,191.85,4.6904]
[1761315031697,4.6887,191.93,191.85,4.6904]
[1761315031892,3.82027252,191.92,191.85,4.6904]
[1761315032110,4.6887,191.93,191.85,4.6904]
[1761315032296,4.6887,191.93,191.82,44.56]
[1761315033699,8.50236413,191.93,191.82,44.56]
[1761315034003,3.81437813,191.92,191.77,8.21033655]
[1761315034208,8.48488143,191.96,191.78,44.54]
[1761315034394,3.81437813,191.95,191.78,44.54]
[1761315034598,3.81437813,191.94,191.83,4.6908]
[1761315034799,3.81437813,191.93,191.83,4.6908]
[1761315035005,3.81437813,191.95,191.83,4.6908]
[1761315035302,3.81437813,191.94,191.83,4.6908]
[1761315035503,3.81437813,191.95,191.83,4.6908]
[1761315035700,3.81437813,191.94,191.79,15.34968746]
[1761315035900,4.6705033,191.96,191.78,17.2]
[1761315035901,3.81437813,191.93,191.78,17.2]
[1761315036207,3.81437813,191.94,191.78,17.2]
[1761315036404,3.81437813,191.94,191.81,4.6912]
[1761315036706,3.39452926,191.93,191.79,3.39452926]
[1761315037007,3.39452926,191.93,191.78,20.59452926]
[1761315037310,7.20890739,191.93,191.79,4.6918]
[1761315037503,3.39452926,191.9,191.79,4.6918]
[1761315039704,3.39452926,191.9,191.76,59.90772871]
[1761315041404,3.39452926,191.89,191.76,59.90772871]
[1761315041715,3.39452926,191.9,191.76,59.90772871]
[1761315042708,7.20208494,191.9,191.76,59.90772871]
[1761315042909,3.39452926,191.9,191.77,44.52]
[1761315043109,3.39452926,191.87,191.77,44.52]
[1761315043913,3.39452926,191.87,191.76,44.52]
[1761315044408,3.39452926,191.87,191.74,3.39452926]
[1761315044712,3.39452926,191.87,191.74,47.91452926]
[1761315045803,3.39452926,191.87,191.74,3.39452926]
[1761315046005,3.39452926,191.87,191.75,44.52]
[1761315047508,3.39452926,191.9,191.75,44.52]
[1761315048114,3.39452926,191.9,191.77,3.39452926]
[1761315048616,3.80557558,191.91,191.77,3.39452926]
[1761315048812,3.80557558,191.92,191.77,3.39452926]
[1761315049916,3.80557558,191.92,191.74,15.63367293]
[1761315049917,3.39452926,191.9,191.74,15.63367293]
[1761315050118,3.39452926,191.9,191.73,47.89452926]
[1761315050518,3.39452926,191.86,191.73,44.5]
[1761315050716,3.39452926,191.86,191.74,44.5]
[1761315051821,3.39452926,191.86,191.71,62.0]
[1761315052021,3.39452926,191.86,191.72,44.5]
[1761315052712,3.39452926,191.86,191.72,60.05082202]
[1761315053319,3.39452926,191.86,191.72,15.55082202]
[1761315053619,3.39452926,191.86,191.73,44.5]
[1761315054715,2.17426842,191.84,191.74,2.17426842]
[1761315054917,3.81261693,191.87,191.74,2.17426842]
[1761315055224,2.17426842,191.84,191.74,2.17426842]
[1761315056625,2.17426842,191.84,191.63,15.68]
[1761315056626,3.81261693,191.88,191.7,15.41947292]
[1761315056826,4.66393076,191.9,191.62,175.47678805]
[1761315056827,2.17426842,191.82,191.72,2.17426842]
[1761315057418,2.17426842,191.8,191.71,44.5]
[1761315057618,2.17426842,191.8,191.62,150.08]
[1761315057924,2.17426842,191.82,191.72,2.17426842]
[1761315059231,2.17426842,191.84,191.74,2.17426842]
[1761315061514,2.17426842,191.82,191.72,2.17426842]
[1761315061714,2.17426842,191.8,191.7,2.17426842]
[1761315062120,2.17426842,191.78,191.68,2.17426842]
[1761315062328,5.98688535,191.78,191.68,2.17426842]
[1761315062525,3.81261693,191.81,191.7,2.17426842]
[1761315062722,5.98688535,191.8,191.7,2.17426842]
[1761315062918,2.17426842,191.78,191.7,2.17426842]
[1761315063422,2.17426842,191.76,191.66,2.17426842]
[1761315063625,3.81261693,191.75,191.66,2.17426842]
[1761315063818,2.17426842,191.76,191.62,2.17426842]
[1761315063819,2.17426842,191.73,191.62,2.17426842]
[1761315064015,5.98688535,191.73,191.64,2.17426842]
[1761315064221,2.17426842,191.73,191.64,2.17426842]
[1761315064520,8.14199916,191.76,191.68,2.17426842]
[1761315064720,2.17426842,191.77,191.68,2.17426842]
[1761315065626,3.81830311,191.76,191.66,2.17426842]
[1761315065926,5.99257153,191.75,191.65,2.17426842]
[1761315066125,2.17426842,191.75,191.65,2.17426842]
[1761315066523,5.99257153,191.75,191.65,2.17426842]
[1761315066716,2.17426842,191.75,191.65,2.17426842]
[1761315066917,3.81830311,191.76,191.67,2.17426842]
[1761315067119,3.81830311,191.77,191.69,2.17426842]
[1761315067320,3.81830311,191.78,191.69,2.17426842]
[1761315069127,2.17426842,191.75,191.67,2.17426842]
[1761315069334,2.17426842,191.75,191.65,2.17426842]
[1761315069533,3.81830311,191.76,191.65,2.17426842]
[1761315069833,2.17426842,191.75,191.65,2.17426842]
[1761315071234,2.17426842,191.73,191.63,2.17426842]
[1761315072421,3.81830311,191.76,191.65,2.17426842]
[1761315072627,3.81830311,191.77,191.67,2.17426842]
[1761315072827,2.17426842,191.76,191.67,2.17426842]
[1761315073337,4.27844698,191.79,191.59,62.0]
[1761315073338,2.17426842,191.77,191.69,2.17426842]
[1761315075523,2.17426842,191.77,191.66,2.17426842]
[1761315076731,2.17426842,191.75,191.66,2.17426842]
[1761315077729,2.17426842,191.73,191.59,62.0]
[1761315077929,3.81830311,191.78,191.46,73.1094]
[1761315077930,2.17426842,191.71,191.62,2.17426842]
[1761315078227,2.17426842,191.69,191.53,44.48]
[1761315078432,2.17426842,191.69,191.59,2.17426842]
[1761315078837,2.17426842,191.69,191.61,2.17426842]
[1761315079036,2.17426842,191.69,191.59,4.6967]
[1761315079231,2.17426842,191.69,191.61,2.17426842]
[1761315079639,2.17426842,191.71,191.61,2.17426842]
[1761315081128,2.17426842,191.71,191.63,2.17426842]
[1761315081841,2.17426842,191.71,191.6,4.6964]
[1761315082032,2.17426842,191.71,191.63,2.17426842]
[1761315082943,2.17426842,191.72,191.63,2.17426842]
[1761315085235,5.99257153,191.72,191.63,2.17426842]
[1761315085534,2.17426842,191.72,191.63,2.17426842]
[1761315085944,5.99257153,191.72,191.63,2.17426842]
[1761315086135,2.17426842,191.72,191.63,2.17426842]
[1761315086639,3.81830311,191.72,191.65,2.17426842]
[1761315086841,5.99257153,191.74,191.67,2.17426842]
[1761315087140,2.17426842,191.74,191.67,2.17426842]
[1761315087341,3.81830311,191.75,191.67,2.17426842]
[1761315087542,3.81830311,191.75,191.69,2.17426842]
[1761315088235,3.81830311,191.81,191.74,2.17426842]
[1761315088543,3.81830311,191.83,191.76,2.17426842]
[1761315088743,5.99257153,191.82,191.73,2.17426842]
[1761315088945,3.81830311,191.81,191.73,2.17426842]
[1761315089146,5.99257153,191.8,191.73,2.17426842]
[1761315089448,3.81830311,191.79,191.73,2.17426842]
[1761315089648,3.81830311,191.78,191.73,2.17426842]
[1761315089847,3.81830311,191.79,191.73,2.17426842]
[1761315090046,3.81830311,191.78,191.73,2.17426842]
[1761315090247,3.81830311,191.79,191.73,2.17426842]
[1761315090449,3.81830311,191.78,191.73,2.17426842]
[1761315090653,3.81830311,191.79,191.73,2.17426842]
[1761315090836,3.81830311,191.78,191.73,2.17426842]
[1761315091042,3.81830311,191.79,191.73,2.17426842]
[1761315091245,3.81830311,191.78,191.73,2.17426842]
[1761315091439,3.81830311,191.79,191.73,2.17426842]
[1761315091645,3.81830311,191.78,191.71,2.17426842]
[1761315091842,2.17426842,191.78,191.69,2.17426842]
[1761315092045,3.81830311,191.77,191.69,2.17426842]
[1761315092247,3.81830311,191.76,191.69,2.17426842]
[1761315092848,3.81830311,191.76,191.68,2.17426842]
[1761315093044,2.17426842,191.72,191.59,103.6884889]
[1761315093353,2.17426842,191.65,191.59,103.6884889]
[1761315093545,2.17426842,191.65,191.54,2.17426842]
[1761315093751,2.17426842,191.64,191.53,2.17426842]
[1761315094053,2.17426842,191.64,191.49,44.46]
[1761315094254,2.17426842,191.64,191.54,2.17426842]
[1761315095350,2.17426842,191.64,191.54,6.87216842]
[1761315095946,2.17426842,191.62,191.52,4.6985]
[1761315096158,2.17426842,191.6,191.52,4.6985]
[1761315097048,2.17426842,191.6,191.5,6.87326842]
[1761315097462,2.17426842,191.6,191.52,2.17426842]
[1761315097758,2.17426842,191.62,191.52,6.87266842]
[1761315098170,2.17426842,191.62,191.52,2.17426842]
[1761315098854,2.17426842,191.6,191.47,194.56]
[1761315099058,2.17426842,191.6,191.49,2.17426842]
[1761315099458,2.17426842,191.6,191.47,150.1]
[1761315099459,2.17426842,191.57,191.47,152.27426842]
[1761315099660,2.17426842,191.57,191.47,2.17426842]
[1761315100048,2.17426842,191.57,191.47,6.87386842]
[1761315100456,2.17426842,191.57,191.47,2.17426842]
[1761315100763,2.17426842,191.59,191.49,6.87336842]
[1761315101157,2.17426842,191.59,191.49,2.17426842]
[1761315101356,2.17426842,191.59,191.5,4.6988]
[1761315104458,2.17426842,191.57,191.45,103.82438974]
[1761315104662,2.17426842,191.57,191.47,2.17426842]
[1761315105369,2.17426842,191.55,191.47,2.17426842]
[1761315105560,2.17426842,191.55,191.45,150.45865816]
[1761315106569,6.02948797,191.55,191.45,150.45865816]
[1761315106766,2.17426842,191.55,191.45,150.45865816]
[1761315107871,4.74472751,191.6,191.45,150.45865816]
[1761315107872,2.17426842,191.53,191.45,148.28438974]
[1761315108865,2.17426842,191.53,191.45,103.82438974]
[1761315109172,2.17426842,191.54,191.45,103.82438974]
[1761315110274,3.88229964,191.59,191.45,105.99865816]
[1761315110570,2.17426842,191.55,191.45,105.99865816]
[1761315110777,2.17426842,191.55,191.46,4.6998]
[1761315111072,6.05656806,191.56,191.47,2.17426842]
[1761315111276,2.17426842,191.56,191.47,2.17426842]
[1761315113578,2.17426842,191.56,191.45,105.99865816]
[1761315114179,4.74472751,191.61,191.45,110.69875816]
[1761315114180,2.17426842,191.54,191.45,110.69875816]
[1761315116481,2.17426842,191.52,191.45,103.82438974]
[1761315116682,3.40788008,191.56,191.45,103.82438974]
[1761315118081,3.40788008,191.56,191.45,108.52438974]
[1761315118285,3.88229964,191.58,191.45,108.52438974]
[1761315118580,3.40788008,191.56,191.45,103.82438974]
[1761315119983,3.40788008,191.58,191.47,4.6996]
[1761315120180,7.28414617,191.59,191.47,44.46]
[1761315120482,3.40788008,191.59,191.47,44.46]
[1761315120680,3.40788008,191.59,191.48,4.6993]
[1761315121277,7.2851304,191.59,191.48,4.6993]
[1761315121581,3.40788008,191.59,191.48,4.6993]
[1761315122183,3.40788008,191.59,191.46,4.6999]
[1761315122383,7.28805772,191.59,191.46,4.6999]
[1761315122687,4.74472751,191.63,191.45,103.82438974]
[1761315122688,3.40788008,191.56,191.45,148.28438974]
[1761315123184,3.40788008,191.57,191.45,148.28438974]
[1761315123383,3.40788008,191.57,191.45,151.69226982]
[1761315123577,3.40788008,191.57,191.45,107.23226982]
[1761315123777,3.40788008,191.57,191.45,151.69226982]
[1761315123979,3.88017276,191.58,191.45,151.69226982]
[1761315124174,3.88017276,191.59,191.45,151.69226982]
[1761315124374,3.88017276,191.6,191.45,151.69226982]
[1761315124584,3.88017276,191.59,191.45,151.69226982]
[1761315124778,3.88017276,191.6,191.45,151.69226982]
[1761315124982,3.88017276,191.59,191.46,4.6999]
[1761315125185,3.88017276,191.6,191.46,4.6999]
[1761315125376,3.88017276,191.59,191.46,4.6999]
[1761315125582,3.88017276,191.6,191.46,4.6999]
[1761315125779,3.88017276,191.59,191.46,4.6999]
[1761315125983,3.88017276,191.6,191.46,4.6999]
[1761315126184,3.88017276,191.59,191.46,4.6999]
[1761315126381,3.88017276,191.58,191.46,4.6999]
[1761315126587,3.88017276,191.57,191.44,3.40788008]
[1761315126884,3.88017276,191.56,191.44,3.40788008]
[1761315127188,7.28805284,191.55,191.41,44.44]
[1761315127387,3.40788008,191.52,191.37,47.84788008]
[1761315127690,3.88017276,191.51,191.37,47.84788008]
[1761315128476,4.74472751,191.57,191.4,3.40788008]
[1761315128680,3.87700489,191.56,191.4,3.40788008]
[1761315128881,3.87700489,191.57,191.4,3.40788008]
[1761315129084,3.87700489,191.56,191.41,34.2]
[1761315129283,3.87700489,191.57,191.41,34.2]
[1761315129580,3.87700489,191.56,191.45,3.40788008]
[1761315129783,3.87700489,191.57,191.45,3.40788008]
[1761315130088,3.87700489,191.56,191.45,3.40788008]
[1761315130289,3.87700489,191.57,191.45,3.40788008]
[1761315130480,3.87700489,191.56,191.45,3.40788008]
[1761315130682,3.87700489,191.57,191.45,3.40788008]
[1761315130881,3.87700489,191.56,191.45,3.40788008]
[1761315131077,3.87700489,191.57,191.45,3.40788008]
[1761315131281,3.87700489,191.56,191.45,3.40788008]
[1761315131480,3.87700489,191.57,191.45,3.40788008]
[1761315131678,3.87700489,191.56,191.45,3.40788008]
[1761315131879,3.87700489,191.57,191.45,3.40788008]
[1761315132079,3.87700489,191.56,191.45,3.40788008]
[1761315132282,3.40788008,191.58,191.45,3.40788008]
[1761315132283,3.87700489,191.55,191.45,3.40788008]
[1761315132484,3.87700489,191.57,191.45,3.40788008]
[1761315132680,3.87700489,191.56,191.45,3.40788008]
[1761315132885,3.87700489,191.55,191.45,3.40788008]
[1761315133084,3.87700489,191.57,191.45,3.40788008]
[1761315133285,3.87700489,191.56,191.45,3.40788008]
[1761315133586,3.87700489,191.55,191.45,3.40788008]
[1761315133895,3.87700489,191.57,191.47,3.40788008]
[1761315134189,3.87700489,191.56,191.47,3.40788008]
[1761315134385,3.87700489,191.55,191.47,3.40788008]
[1761315134586,3.87700489,191.54,191.47,3.40788008]
[1761315134787,3.87700489,191.57,191.47,3.40788008]
[1761315135093,3.87700489,191.56,191.47,3.40788008]
[1761315135286,3.87700489,191.55,191.47,3.40788008]
[1761315135487,3.87700489,191.54,191.47,3.40788008]